[Event "Late-Titled-Tuesday-Blitz-March-19-2024"]
[Site "Chess.com"]
[Date "2024.03.19"]
[Round "9"]
[White "MalyDominator"]
[Black "ZachHKL"]
[Result "1-0"]
[WhiteElo "2535"]
[BlackElo "2234"]
[TimeControl "180+1"]
[EndTime "15:45:38 PDT"]
[Termination "MalyDominator won by checkmate"]

1. e4 {[%clk 0:01:00]} 1... c5 {[%clk 0:02:31.4]} 2. Nf3 {[%clk 0:00:57.8]} 2...
Nc6 {[%clk 0:02:29.8]} 3. d4 {[%clk 0:00:57.9]} 3... cxd4 {[%clk 0:02:30.7]} 4.
Nxd4 {[%clk 0:00:58.1]} 4... Nf6 {[%clk 0:02:28.4]} 5. Nc3 {[%clk 0:00:58.7]}
5... e5 {[%clk 0:02:27.8]} 6. Ndb5 {[%clk 0:00:59.2]} 6... d6 {[%clk 0:02:26.6]}
7. Nd5 {[%clk 0:00:59.9]} 7... Nxd5 {[%clk 0:02:25.6]} 8. exd5 {[%clk
0:01:00.8]} 8... Nb8 {[%clk 0:02:26.3]} 9. c4 {[%clk 0:01:01.3]} 9... Be7 {[%clk
0:02:24.7]} 10. Be3 {[%clk 0:01:01.5]} 10... O-O {[%clk 0:02:24.2]} 11. Be2
{[%clk 0:01:02.1]} 11... a6 {[%clk 0:02:23.9]} 12. Nc3 {[%clk 0:01:02]} 12...
Nd7 {[%clk 0:02:20.3]} 13. O-O {[%clk 0:01:01.5]} 13... f5 {[%clk 0:02:18.3]}
14. f3 {[%clk 0:01:01.6]} 14... Nf6 {[%clk 0:02:18.3]} 15. Rc1 {[%clk
0:01:00.8]} 15... Bd7 {[%clk 0:02:18]} 16. b4 {[%clk 0:01:00.3]} 16... a5 {[%clk
0:02:15.4]} 17. a3 {[%clk 0:01:00.7]} 17... axb4 {[%clk 0:02:15.3]} 18. axb4
{[%clk 0:01:01.6]} 18... b6 {[%clk 0:02:09.1]} 19. c5 {[%clk 0:00:59.5]} 19...
bxc5 {[%clk 0:02:06.6]} 20. bxc5 {[%clk 0:00:59.3]} 20... Ne8 {[%clk 0:01:58.7]}
21. c6 {[%clk 0:00:58.3]} 21... Bc8 {[%clk 0:01:58.1]} 22. Nb5 {[%clk 0:00:57]}
22... Bg5 {[%clk 0:01:50.5]} 23. Qd2 {[%clk 0:00:49.6]} 23... Bf6 {[%clk
0:01:26.9]} 24. Ra1 {[%clk 0:00:33.5]} 24... Rb8 {[%clk 0:01:24.2]} 25. Ba7
{[%clk 0:00:29.1]} 25... Ra8 {[%clk 0:01:15.5]} 26. Be3 {[%clk 0:00:21]} 26...
Rb8 {[%clk 0:01:14]} 27. Ra7 {[%clk 0:00:20.5]} 27... f4 {[%clk 0:01:01.3]} 28.
Bf2 {[%clk 0:00:20.2]} 28... Rxb5 {[%clk 0:00:55.5]} 29. Bxb5 {[%clk 0:00:20]}
29... Bf5 {[%clk 0:00:53.4]} 30. c7 {[%clk 0:00:19.4]} 30... Nxc7 {[%clk
0:00:52.4]} 31. Bb6 {[%clk 0:00:20.1]} 31... Qb8 {[%clk 0:00:50.3]} 32. Qa5
{[%clk 0:00:18.3]} 32... Nxd5 {[%clk 0:00:48.8]} 33. Bc4 {[%clk 0:00:17.5]}
33... Kh8 {[%clk 0:00:42.5]} 34. Bxd5 {[%clk 0:00:17.8]} 34... Bd3 {[%clk
0:00:38.3]} 35. Rd1 {[%clk 0:00:15.5]} 35... Bc2 {[%clk 0:00:36.5]} 36. Rc1
{[%clk 0:00:15.7]} 36... Bf5 {[%clk 0:00:36.7]} 37. Rb7 {[%clk 0:00:13.2]} 37...
Qe8 {[%clk 0:00:35.6]} 38. Qa7 {[%clk 0:00:10.8]} 38... Qg6 {[%clk 0:00:34.6]}
39. Rf7 {[%clk 0:00:09.5]} 39... Re8 {[%clk 0:00:27.9]} 40. Qa4 {[%clk
0:00:08.2]} 40... Rb8 {[%clk 0:00:25.2]} 41. Ba7 {[%clk 0:00:06.5]} 41... Bh3
{[%clk 0:00:20.6]} 42. Qa2 {[%clk 0:00:06.6]} 42... Rd8 {[%clk 0:00:17.8]} 43.
Rfc7 {[%clk 0:00:06.5]} 43... h5 {[%clk 0:00:16.3]} 44. Be4 {[%clk 0:00:06.9]}
44... Qg5 {[%clk 0:00:15.6]} 45. Bb6 {[%clk 0:00:05.3]} 45... Rf8 {[%clk
0:00:14.6]} 46. R7c6 {[%clk 0:00:04.5]} 46... h4 {[%clk 0:00:14.5]} 47. Rxd6
{[%clk 0:00:04.7]} 47... Bc8 {[%clk 0:00:13.8]} 48. Rdc6 {[%clk 0:00:04.8]}
48... Bd7 {[%clk 0:00:13.8]} 49. Rc7 {[%clk 0:00:05.2]} 49... Bh3 {[%clk
0:00:13.1]} 50. Bc5 {[%clk 0:00:04.7]} 50... Rb8 {[%clk 0:00:12.2]} 51. Rb7
{[%clk 0:00:04.3]} 51... Rc8 {[%clk 0:00:10.2]} 52. Ba3 {[%clk 0:00:02.9]} 52...
Rd8 {[%clk 0:00:09.4]} 53. Qf2 {[%clk 0:00:02.9]} 53... Rd4 {[%clk 0:00:07]} 54.
Rbb1 {[%clk 0:00:03]} 54... Rd8 {[%clk 0:00:06.9]} 55. Rd1 {[%clk 0:00:03.4]}
55... Re8 {[%clk 0:00:05.8]} 56. Bc5 {[%clk 0:00:03.6]} 56... Rc8 {[%clk
0:00:05.7]} 57. Rbc1 {[%clk 0:00:03.2]} 57... Re8 {[%clk 0:00:05.1]} 58. Kh1
{[%clk 0:00:03.7]} 58... Be6 {[%clk 0:00:04.7]} 59. Rd6 {[%clk 0:00:03.9]} 59...
h3 {[%clk 0:00:04.8]} 60. gxh3 {[%clk 0:00:02.4]} 60... Bxh3 {[%clk 0:00:04.4]}
61. Rg1 {[%clk 0:00:03.1]} 61... Qh6 {[%clk 0:00:04.2]} 62. Qe1 {[%clk
0:00:01.9]} 62... Qh5 {[%clk 0:00:03.5]} 63. Qf2 {[%clk 0:00:02.3]} 63... Qh6
{[%clk 0:00:03.6]} 64. Rdd1 {[%clk 0:00:01.8]} 64... Bh4 {[%clk 0:00:04]} 65.
Qd2 {[%clk 0:00:02.2]} 65... Bf6 {[%clk 0:00:03.8]} 66. Qf2 {[%clk 0:00:02.4]}
66... Bh4 {[%clk 0:00:03.9]} 67. Qe2 {[%clk 0:00:03]} 67... Bg3 {[%clk
0:00:04.5]} 68. Rd6 {[%clk 0:00:03]} 68... Be6 {[%clk 0:00:03.2]} 69. Rg2 {[%clk
0:00:02.5]} 69... Qh3 {[%clk 0:00:02.5]} 70. Bd5 {[%clk 0:00:02.7]} 70... Rb8
{[%clk 0:00:02.9]} 71. Bxe6 {[%clk 0:00:02.4]} 71... Rb1+ {[%clk 0:00:03.5]} 72.
Rg1 {[%clk 0:00:03]} 72... Rxg1+ {[%clk 0:00:02.2]} 73. Kxg1 {[%clk 0:00:03.6]}
73... Bh4 {[%clk 0:00:02.8]} 74. Qg2 {[%clk 0:00:03.5]} 74... Qxg2+ {[%clk
0:00:02.7]} 75. Kxg2 {[%clk 0:00:03.7]} 75... Bf6 {[%clk 0:00:03.5]} 76. Kh3
{[%clk 0:00:04.1]} 76... Kh7 {[%clk 0:00:04.1]} 77. Kg4 {[%clk 0:00:04.6]} 77...
Kg6 {[%clk 0:00:04.8]} 78. Bf5+ {[%clk 0:00:05.1]} 78... Kf7 {[%clk 0:00:05.4]}
79. Rd7+ {[%clk 0:00:05.9]} 79... Ke8 {[%clk 0:00:06.1]} 80. Rd1 {[%clk
0:00:06.3]} 80... Kf7 {[%clk 0:00:05.8]} 81. Bf2 {[%clk 0:00:06.6]} 81... g6
{[%clk 0:00:06.1]} 82. Bc8 {[%clk 0:00:06.3]} 82... Ke8 {[%clk 0:00:06.7]} 83.
Ba6 {[%clk 0:00:06.7]} 83... Kf7 {[%clk 0:00:07.5]} 84. Bb5 {[%clk 0:00:07.4]}
84... Be7 {[%clk 0:00:07.8]} 85. Bc4+ {[%clk 0:00:08]} 85... Kf6 {[%clk
0:00:08.5]} 86. h4 {[%clk 0:00:08.4]} 86... Kg7 {[%clk 0:00:08.4]} 87. h5 {[%clk
0:00:09]} 87... g5 {[%clk 0:00:08.2]} 88. Kf5 {[%clk 0:00:09]} 88... Kh6 {[%clk
0:00:09.1]} 89. Rh1 {[%clk 0:00:08.1]} 89... Bf8 {[%clk 0:00:09.3]} 90. Bf7
{[%clk 0:00:08.4]} 90... Bg7 {[%clk 0:00:10.2]} 91. Bg6 {[%clk 0:00:09.3]} 91...
Bh8 {[%clk 0:00:08.6]} 92. Rd1 {[%clk 0:00:09.5]} 92... Bg7 {[%clk 0:00:09.5]}
93. Rd8 {[%clk 0:00:09.9]} 93... g4 {[%clk 0:00:08.5]} 94. fxg4 {[%clk
0:00:09.6]} 94... Bf6 {[%clk 0:00:08.9]} 95. g5+ {[%clk 0:00:09]} 95... Bxg5
{[%clk 0:00:08.9]} 96. Rh8+ {[%clk 0:00:09.2]} 96... Kg7 {[%clk 0:00:09.2]} 97.
Rh7+ {[%clk 0:00:09.9]} 97... Kg8 {[%clk 0:00:09.6]} 98. Kxg5 {[%clk 0:00:10.5]}
98... e4 {[%clk 0:00:09.8]} 99. Kxf4 {[%clk 0:00:10.2]} 99... e3 {[%clk
0:00:09.9]} 100. Bxe3 {[%clk 0:00:10.1]} 100... Kf8 {[%clk 0:00:10.8]} 101. Bc5+
{[%clk 0:00:10.5]} 101... Kg8 {[%clk 0:00:11.4]} 102. Rb7 {[%clk 0:00:10.3]}
102... Kh8 {[%clk 0:00:11.4]} 103. Bd4+ {[%clk 0:00:10.7]} 103... Kg8 {[%clk
0:00:11.6]} 104. Rb8# {[%clk 0:00:11.5]} 1-0

[Event "Late-Titled-Tuesday-Blitz-March-19-2024"]
[Site "Chess.com"]
[Date "2024.03.19"]
[Round "9"]
[White "IMchanged"]
[Black "ozates"]
[Result "0-1"]
[WhiteElo "2663"]
[BlackElo "2586"]
[TimeControl "180+1"]
[EndTime "15:45:39 PDT"]
[Termination "ozates won by resignation"]

1. e4 {[%clk 0:03:00.9]} 1... c5 {[%clk 0:02:58.1]} 2. Nf3 {[%clk 0:02:57.2]}
2... Nc6 {[%clk 0:02:56]} 3. Bb5 {[%clk 0:02:56.4]} 3... g6 {[%clk 0:02:55.6]}
4. O-O {[%clk 0:02:55.8]} 4... Bg7 {[%clk 0:02:52.5]} 5. Re1 {[%clk 0:02:55.9]}
5... e5 {[%clk 0:02:51.5]} 6. Bxc6 {[%clk 0:02:47.7]} 6... dxc6 {[%clk
0:02:52.4]} 7. a4 {[%clk 0:02:47.3]} 7... f6 {[%clk 0:02:46.4]} 8. d3 {[%clk
0:02:45]} 8... b6 {[%clk 0:02:45.2]} 9. Be3 {[%clk 0:02:43.9]} 9... Nh6 {[%clk
0:02:44.1]} 10. h3 {[%clk 0:02:43.1]} 10... O-O {[%clk 0:02:43.8]} 11. a5 {[%clk
0:02:42.8]} 11... Rb8 {[%clk 0:02:43.8]} 12. axb6 {[%clk 0:02:41.4]} 12... axb6
{[%clk 0:02:44.4]} 13. Qd2 {[%clk 0:02:36.2]} 13... Nf7 {[%clk 0:02:40.9]} 14.
b4 {[%clk 0:02:36.1]} 14... cxb4 {[%clk 0:02:29.9]} 15. Qxb4 {[%clk 0:02:35.9]}
15... Be6 {[%clk 0:02:30.3]} 16. Nbd2 {[%clk 0:02:27.7]} 16... Re8 {[%clk
0:02:06.9]} 17. Ra6 {[%clk 0:02:20.4]} 17... Bf8 {[%clk 0:02:05.5]} 18. Qb2
{[%clk 0:02:18.2]} 18... Bc5 {[%clk 0:01:51.2]} 19. Bxc5 {[%clk 0:02:15.9]}
19... bxc5 {[%clk 0:01:52.1]} 20. Qc3 {[%clk 0:02:16]} 20... Qd6 {[%clk
0:01:44.4]} 21. Nc4 {[%clk 0:02:15.6]} 21... Bxc4 {[%clk 0:01:44.3]} 22. Qxc4
{[%clk 0:02:15.3]} 22... Rb4 {[%clk 0:01:42.6]} 23. Qa2 {[%clk 0:02:13.5]} 23...
Reb8 {[%clk 0:01:41]} 24. Ra7 {[%clk 0:02:12.3]} 24... R4b7 {[%clk 0:01:39.9]}
25. Nd2 {[%clk 0:02:08.6]} 25... Rxa7 {[%clk 0:01:21.3]} 26. Qxa7 {[%clk
0:02:06.4]} 26... Re8 {[%clk 0:01:07.8]} 27. Rb1 {[%clk 0:02:01.2]} 27... Re7
{[%clk 0:01:03.8]} 28. Rb7 {[%clk 0:01:52.3]} 28... Rxb7 {[%clk 0:00:57.2]} 29.
Qxb7 {[%clk 0:01:53.2]} 29... Ng5 {[%clk 0:00:48.5]} 30. Nc4 {[%clk 0:01:45]}
30... Qe6 {[%clk 0:00:40.3]} 31. Qb8+ {[%clk 0:01:27.9]} 31... Kg7 {[%clk
0:00:38.8]} 32. Qa7+ {[%clk 0:01:28.2]} 32... Nf7 {[%clk 0:00:30.3]} 33. Qxc5
{[%clk 0:01:26.9]} 33... f5 {[%clk 0:00:30.9]} 34. exf5 {[%clk 0:01:18.8]} 34...
gxf5 {[%clk 0:00:30.9]} 35. d4 {[%clk 0:01:01.9]} 35... e4 {[%clk 0:00:27.9]}
36. Na5 {[%clk 0:01:01.4]} 36... e3 {[%clk 0:00:23.4]} 37. d5 {[%clk 0:00:46.9]}
37... exf2+ {[%clk 0:00:13.8]} 38. Kxf2 {[%clk 0:00:47.6]} 38... cxd5 {[%clk
0:00:13.5]} 39. Qd4+ {[%clk 0:00:46.2]} 39... Kg6 {[%clk 0:00:12.8]} 40. Nb3
{[%clk 0:00:44.5]} 40... Ng5 {[%clk 0:00:12.7]} 41. Nc5 {[%clk 0:00:40.6]} 41...
Ne4+ {[%clk 0:00:12.1]} 42. Kg1 {[%clk 0:00:41]} 42... Nxc5 {[%clk 0:00:08.4]}
43. Qxc5 {[%clk 0:00:40.8]} 43... Qe1+ {[%clk 0:00:09.1]} 44. Kh2 {[%clk
0:00:41.1]} 44... Qe5+ {[%clk 0:00:09.7]} 45. Kg1 {[%clk 0:00:41.3]} 45... Qe1+
{[%clk 0:00:10.3]} 46. Kh2 {[%clk 0:00:41.9]} 46... Qe5+ {[%clk 0:00:11]} 47.
Kh1 {[%clk 0:00:41.9]} 47... Qe1+ {[%clk 0:00:11.3]} 48. Qg1 {[%clk 0:00:38.3]}
48... Qc3 {[%clk 0:00:11.6]} 49. Qd1 {[%clk 0:00:38.2]} 49... d4 {[%clk
0:00:11]} 50. Qe2 {[%clk 0:00:35.9]} 50... Qa1+ {[%clk 0:00:10.2]} 51. Kh2
{[%clk 0:00:35.9]} 51... Qc3 {[%clk 0:00:10.8]} 52. g3 {[%clk 0:00:29.5]} 52...
Kf6 {[%clk 0:00:09.9]} 53. h4 {[%clk 0:00:26.4]} 53... h6 {[%clk 0:00:06.5]} 54.
Kh3 {[%clk 0:00:22.9]} 54... Qc6 {[%clk 0:00:06.1]} 55. Qd1 {[%clk 0:00:17.2]}
55... Qe4 {[%clk 0:00:05.8]} 56. Kh2 {[%clk 0:00:14.4]} 56... Qe3 {[%clk
0:00:05.7]} 57. Qf1 {[%clk 0:00:12.3]} 57... Kg6 {[%clk 0:00:03.6]} 58. Kh3
{[%clk 0:00:08.9]} 58... Qe4 {[%clk 0:00:03.3]} 59. Qa6+ {[%clk 0:00:08.4]}
59... Kg7 {[%clk 0:00:03.2]} 60. Qf1 {[%clk 0:00:07]} 60... Qg4+ {[%clk
0:00:02.7]} 61. Kh2 {[%clk 0:00:06.9]} 61... Qe4 {[%clk 0:00:03.6]} 62. Qf2
{[%clk 0:00:07.4]} 62... Kg6 {[%clk 0:00:03.7]} 63. Qd2 {[%clk 0:00:05.9]} 63...
Kg7 {[%clk 0:00:03.7]} 64. Kg1 {[%clk 0:00:04.3]} 64... Kg6 {[%clk 0:00:04]} 65.
Kf2 {[%clk 0:00:04.9]} 65... Qe5 {[%clk 0:00:03.7]} 66. Qe2 {[%clk 0:00:04.6]}
66... Qd5 {[%clk 0:00:03.7]} 67. Qa6+ {[%clk 0:00:04.2]} 67... Kg7 {[%clk
0:00:03.8]} 68. h5 {[%clk 0:00:04.1]} 68... Qe5 {[%clk 0:00:03.6]} 69. Qg6+
{[%clk 0:00:04.3]} 69... Kf8 {[%clk 0:00:03.5]} 70. Qxh6+ {[%clk 0:00:04.9]}
70... Ke8 {[%clk 0:00:04.1]} 71. Qf4 {[%clk 0:00:05.5]} 71... Qc5 {[%clk
0:00:03.5]} 72. Qd2 {[%clk 0:00:01.8]} 72... d3+ {[%clk 0:00:03.9]} 73. Kf3
{[%clk 0:00:02.5]} 73... dxc2 {[%clk 0:00:04.8]} 74. Qc1 {[%clk 0:00:03.1]}
74... Qc3+ {[%clk 0:00:05]} 75. Kf4 {[%clk 0:00:03.4]} 75... Qd4+ {[%clk
0:00:05.1]} 76. Kxf5 {[%clk 0:00:03.8]} 76... Qf2+ {[%clk 0:00:05.5]} 77. Kg6
{[%clk 0:00:03.6]} 77... Qb6+ {[%clk 0:00:05.1]} 78. Kh7 {[%clk 0:00:03.8]}
78... Qc7+ {[%clk 0:00:05.3]} 79. Kh6 {[%clk 0:00:04]} 79... Qd6+ {[%clk
0:00:05.7]} 80. Kh7 {[%clk 0:00:04.2]} 80... Qd1 {[%clk 0:00:06.1]} 81. Qe3+
{[%clk 0:00:04.1]} 81... Kd8 {[%clk 0:00:06.4]} 82. Qb6+ {[%clk 0:00:04.1]}
82... Kd7 {[%clk 0:00:06.3]} 83. Qb5+ {[%clk 0:00:04.7]} 83... Kd6 {[%clk
0:00:06.8]} 84. Qb4+ {[%clk 0:00:05.1]} 84... Kd5 {[%clk 0:00:07.3]} 85. Qb5+
{[%clk 0:00:05.7]} 85... Ke4 {[%clk 0:00:07.9]} 86. Qc4+ {[%clk 0:00:05.4]}
86... Kf3 {[%clk 0:00:08.5]} 87. Qf4+ {[%clk 0:00:05.1]} 87... Kg2 {[%clk
0:00:08.8]} 88. Qe4+ {[%clk 0:00:04]} 88... Kh2 {[%clk 0:00:09.1]} 89. g4 {[%clk
0:00:04.1]} 89... c1=Q {[%clk 0:00:09]} 90. Qe5+ {[%clk 0:00:03.7]} 90... Kg2
{[%clk 0:00:08.5]} 91. g5 {[%clk 0:00:03.3]} 91... Qxh5+ {[%clk 0:00:08.1]} 92.
Kg7 {[%clk 0:00:04]} 92... Qhxg5+ {[%clk 0:00:08.3]} 93. Qxg5+ {[%clk
0:00:03.7]} 93... Qxg5+ {[%clk 0:00:09.2]} 0-1

[Event "Late-Titled-Tuesday-Blitz-March-19-2024"]
[Site "Chess.com"]
[Date "2024.03.19"]
[Round "10"]
[White "emeli_chess"]
[Black "sacrifoice"]
[Result "1-0"]
[WhiteElo "2389"]
[BlackElo "2235"]
[TimeControl "180+1"]
[EndTime "15:48:59 PDT"]
[Termination "emeli_chess won by resignation"]

1. d4 {[%clk 0:03:00.9]} 1... Nf6 {[%clk 0:02:59.3]} 2. c4 {[%clk 0:03:00.8]}
2... e6 {[%clk 0:02:58.8]} 3. Nc3 {[%clk 0:03:00.8]} 3... Bb4 {[%clk 0:02:57.8]}
4. Qc2 {[%clk 0:03:00.8]} 4... b6 {[%clk 0:02:57.6]} 5. e4 {[%clk 0:03:00.2]}
5... Bb7 {[%clk 0:02:56]} 6. e5 {[%clk 0:03:00.5]} 6... Ne4 {[%clk 0:02:54.4]}
7. Nf3 {[%clk 0:03:00.8]} 7... f5 {[%clk 0:02:50.4]} 8. exf6 {[%clk 0:02:58]}
8... Qxf6 {[%clk 0:02:45.8]} 9. Bd3 {[%clk 0:02:55.9]} 9... Nxc3 {[%clk
0:02:42.9]} 10. bxc3 {[%clk 0:02:55.8]} 10... Bd6 {[%clk 0:02:37.9]} 11. Bxh7
{[%clk 0:02:35]} 11... Bxf3 {[%clk 0:02:33.6]} 12. Bg6+ {[%clk 0:02:27]} 12...
Ke7 {[%clk 0:02:31.5]} 13. gxf3 {[%clk 0:02:26.9]} 13... Rxh2 {[%clk 0:02:19.4]}
14. Rg1 {[%clk 0:02:21.1]} 14... Nc6 {[%clk 0:02:14.4]} 15. Bg5 {[%clk
0:02:18.4]} 1-0

[Event "Late-Titled-Tuesday-Blitz-March-19-2024"]
[Site "Chess.com"]
[Date "2024.03.19"]
[Round "10"]
[White "CuteSheepCloud"]
[Black "Sinquefield"]
[Result "0-1"]
[WhiteElo "2639"]
[BlackElo "2551"]
[TimeControl "180+1"]
[EndTime "15:49:18 PDT"]
[Termination "Sinquefield won by resignation"]

1. e4 {[%clk 0:03:00.9]} 1... e6 {[%clk 0:02:58.8]} 2. d4 {[%clk 0:03:01]} 2...
d5 {[%clk 0:02:59.7]} 3. Nd2 {[%clk 0:03:01.6]} 3... Nf6 {[%clk 0:02:57.5]} 4.
e5 {[%clk 0:03:01.9]} 4... Nfd7 {[%clk 0:02:58.2]} 5. Bd3 {[%clk 0:03:02.4]}
5... c5 {[%clk 0:02:59.1]} 6. c3 {[%clk 0:03:03.1]} 6... Nc6 {[%clk 0:02:59]} 7.
Ne2 {[%clk 0:03:03.8]} 7... cxd4 {[%clk 0:02:58.4]} 8. cxd4 {[%clk 0:03:04.7]}
8... f6 {[%clk 0:02:59.1]} 9. exf6 {[%clk 0:03:05]} 9... Nxf6 {[%clk 0:03:00]}
10. Nf3 {[%clk 0:03:05.2]} 10... Bd6 {[%clk 0:03:00.4]} 11. O-O {[%clk
0:03:05.9]} 11... Qc7 {[%clk 0:03:00.9]} 12. g3 {[%clk 0:03:04.5]} 12... O-O
{[%clk 0:02:42.8]} 13. Bf4 {[%clk 0:03:04.9]} 13... Bxf4 {[%clk 0:02:42.3]} 14.
Nxf4 {[%clk 0:03:05.8]} 14... Ng4 {[%clk 0:02:36.4]} 15. h3 {[%clk 0:03:04.5]}
15... Nh6 {[%clk 0:02:32.6]} 16. Re1 {[%clk 0:03:04.1]} 16... Nf5 {[%clk
0:02:29.4]} 17. Nxe6 {[%clk 0:03:02.9]} 17... Bxe6 {[%clk 0:02:28.9]} 18. Rxe6
{[%clk 0:03:03.8]} 18... Nxg3 {[%clk 0:02:26.3]} 19. Ng5 {[%clk 0:02:54.5]}
19... Ne4 {[%clk 0:02:18.2]} 20. Bxe4 {[%clk 0:02:52.3]} 20... dxe4 {[%clk
0:02:16.9]} 21. Qh5 {[%clk 0:02:52.1]} 21... h6 {[%clk 0:02:04.6]} 22. Nxe4
{[%clk 0:02:52.1]} 22... Nxd4 {[%clk 0:02:04.8]} 23. Rg6 {[%clk 0:02:48.5]}
23... Nf3+ {[%clk 0:02:03.3]} 24. Kf1 {[%clk 0:02:48]} 24... Qc4+ {[%clk
0:01:59.5]} 25. Kg2 {[%clk 0:02:45.3]} 25... Qxe4 {[%clk 0:01:57.6]} 26. Kg3
{[%clk 0:02:44]} 26... Ne5 {[%clk 0:01:52.2]} 27. Re6 {[%clk 0:02:42.3]} 27...
Rf3+ {[%clk 0:01:50]} 28. Kh2 {[%clk 0:02:42.5]} 28... Rxf2+ {[%clk 0:01:50.2]}
0-1

[Event "Late-Titled-Tuesday-Blitz-March-19-2024"]
[Site "Chess.com"]
[Date "2024.03.19"]
[Round "10"]
[White "HaryKane"]
[Black "Yan_Dyomin2010"]
[Result "0-1"]
[WhiteElo "2587"]
[BlackElo "2726"]
[TimeControl "180+1"]
[EndTime "15:49:29 PDT"]
[Termination "Yan_Dyomin2010 won by resignation"]

1. f4 {[%clk 0:03:00.9]} 1... Nf6 {[%clk 0:02:59.1]} 2. Nf3 {[%clk 0:03:00.7]}
2... g6 {[%clk 0:02:59.1]} 3. d3 {[%clk 0:02:59.8]} 3... d5 {[%clk 0:02:58.6]}
4. g3 {[%clk 0:02:52.2]} 4... Bg7 {[%clk 0:02:58.8]} 5. Bg2 {[%clk 0:02:52.8]}
5... O-O {[%clk 0:02:59.1]} 6. O-O {[%clk 0:02:53.5]} 6... c5 {[%clk 0:02:56.3]}
7. Qe1 {[%clk 0:02:52.2]} 7... d4 {[%clk 0:02:54.8]} 8. a4 {[%clk 0:02:51.9]}
8... Nc6 {[%clk 0:02:50.4]} 9. Na3 {[%clk 0:02:47.6]} 9... Be6 {[%clk
0:02:49.2]} 10. b3 {[%clk 0:02:47.3]} 10... Nd5 {[%clk 0:02:46.7]} 11. Ng5
{[%clk 0:02:40.6]} 11... Bc8 {[%clk 0:02:39.2]} 12. Nc4 {[%clk 0:02:34.1]} 12...
Ncb4 {[%clk 0:02:35.2]} 13. Qd2 {[%clk 0:02:21.6]} 13... Ne3 {[%clk 0:02:34.8]}
14. Ba3 {[%clk 0:02:02.5]} 14... Nbxc2 {[%clk 0:02:26.9]} 15. Bxc5 {[%clk
0:01:59]} 15... Nxa1 {[%clk 0:02:24.5]} 16. Rxa1 {[%clk 0:01:58.1]} 16... Nxg2
{[%clk 0:02:24.3]} 17. Kxg2 {[%clk 0:01:46.2]} 17... Qd5+ {[%clk 0:02:24.7]} 18.
Ne4 {[%clk 0:01:46.3]} 18... f5 {[%clk 0:02:23]} 19. Bxe7 {[%clk 0:01:39.3]}
19... fxe4 {[%clk 0:02:23.6]} 0-1

[Event "Late-Titled-Tuesday-Blitz-March-19-2024"]
[Site "Chess.com"]
[Date "2024.03.19"]
[Round "10"]
[White "RichardLeyvaP"]
[Black "Kombinator01"]
[Result "1-0"]
[WhiteElo "2553"]
[BlackElo "2437"]
[TimeControl "180+1"]
[EndTime "15:49:51 PDT"]
[Termination "RichardLeyvaP won by resignation"]

1. e4 {[%clk 0:02:58.9]} 1... e5 {[%clk 0:02:57.7]} 2. Nf3 {[%clk 0:02:58.7]}
2... Nf6 {[%clk 0:02:56.7]} 3. Nc3 {[%clk 0:02:54.6]} 3... Nc6 {[%clk
0:02:55.9]} 4. d4 {[%clk 0:02:51.9]} 4... exd4 {[%clk 0:02:55.3]} 5. Nxd4 {[%clk
0:02:52.8]} 5... Bb4 {[%clk 0:02:54.9]} 6. Nxc6 {[%clk 0:02:53]} 6... bxc6
{[%clk 0:02:54.8]} 7. Bd3 {[%clk 0:02:53.9]} 7... d5 {[%clk 0:02:53.3]} 8. exd5
{[%clk 0:02:54.8]} 8... cxd5 {[%clk 0:02:53.6]} 9. Qe2+ {[%clk 0:02:55.2]} 9...
Qe7 {[%clk 0:02:50.8]} 10. Qxe7+ {[%clk 0:02:54.4]} 10... Bxe7 {[%clk
0:02:48.5]} 11. Nb5 {[%clk 0:02:54.1]} 11... Bd8 {[%clk 0:02:45.3]} 12. Bf4
{[%clk 0:02:53]} 12... Kd7 {[%clk 0:02:30.1]} 13. Bf5+ {[%clk 0:02:52.3]} 13...
Kc6 {[%clk 0:02:30.4]} 14. Nxa7+ {[%clk 0:02:49]} 14... Rxa7 {[%clk 0:02:26.2]}
15. Bxc8 {[%clk 0:02:49.3]} 15... Be7 {[%clk 0:02:23.7]} 16. Bf5 {[%clk
0:02:47.5]} 16... Rb8 {[%clk 0:02:22.5]} 17. b3 {[%clk 0:02:44.6]} 17... Rba8
{[%clk 0:02:21.9]} 18. a4 {[%clk 0:02:43.8]} 18... Ne4 {[%clk 0:02:18]} 19. Bxe4
{[%clk 0:02:40.4]} 19... dxe4 {[%clk 0:02:17.9]} 20. Ke2 {[%clk 0:02:30.2]}
20... f5 {[%clk 0:02:16.6]} 21. Be5 {[%clk 0:02:29.4]} 21... g5 {[%clk
0:02:15.6]} 22. Rad1 {[%clk 0:02:18.8]} 22... Ra5 {[%clk 0:02:14.9]} 23. Bb2
{[%clk 0:02:14.1]} 23... f4 {[%clk 0:02:13.4]} 24. Rd4 {[%clk 0:02:12.6]} 24...
e3 {[%clk 0:02:07.6]} 25. fxe3 {[%clk 0:02:11.5]} 25... Bc5 {[%clk 0:02:07.9]}
26. Rc4 {[%clk 0:02:08.7]} 26... Re8 {[%clk 0:02:04.8]} 27. Bd4 {[%clk
0:02:07.6]} 27... Kd5 {[%clk 0:02:04.9]} 28. Rd1 {[%clk 0:02:02.6]} 1-0

[Event "Late-Titled-Tuesday-Blitz-March-19-2024"]
[Site "Chess.com"]
[Date "2024.03.19"]
[Round "10"]
[White "mind1mover"]
[Black "Meri-Arabidze"]
[Result "1-0"]
[WhiteElo "2802"]
[BlackElo "2675"]
[TimeControl "180+1"]
[EndTime "15:50:34 PDT"]
[Termination "mind1mover won by resignation"]

1. e4 {[%clk 0:03:00.9]} 1... c5 {[%clk 0:03:00.1]} 2. Nf3 {[%clk 0:03:00.5]}
2... e6 {[%clk 0:03:00.6]} 3. d4 {[%clk 0:02:57.4]} 3... cxd4 {[%clk 0:03:01.5]}
4. Nxd4 {[%clk 0:02:58]} 4... Nc6 {[%clk 0:03:01.9]} 5. Nc3 {[%clk 0:02:58.2]}
5... a6 {[%clk 0:03:02.3]} 6. Be3 {[%clk 0:02:55.6]} 6... Nf6 {[%clk 0:03:02.1]}
7. Bd3 {[%clk 0:02:47.6]} 7... Qc7 {[%clk 0:03:00.3]} 8. Qe2 {[%clk 0:02:43.9]}
8... Bb4 {[%clk 0:02:52.6]} 9. O-O {[%clk 0:02:39.4]} 9... Ne5 {[%clk
0:02:51.3]} 10. f4 {[%clk 0:01:53.8]} 10... Neg4 {[%clk 0:02:51]} 11. e5 {[%clk
0:01:53.6]} 11... Nxe3 {[%clk 0:02:51]} 12. Qxe3 {[%clk 0:01:54.1]} 12... Ng4
{[%clk 0:02:46.3]} 13. Qg3 {[%clk 0:01:50.9]} 13... Bxc3 {[%clk 0:02:28.7]} 14.
bxc3 {[%clk 0:01:51.8]} 14... Qxc3 {[%clk 0:02:28.2]} 15. Nxe6 {[%clk
0:01:43.2]} 15... dxe6 {[%clk 0:02:25.4]} 16. Bb5+ {[%clk 0:01:42.3]} 16... axb5
{[%clk 0:02:19.4]} 17. Qxc3 {[%clk 0:01:41.5]} 17... Bd7 {[%clk 0:02:19.3]} 18.
h3 {[%clk 0:01:31.3]} 18... Nh6 {[%clk 0:02:18.6]} 19. g4 {[%clk 0:01:31]} 19...
O-O {[%clk 0:02:17.8]} 20. Rad1 {[%clk 0:01:26.5]} 20... Bc6 {[%clk 0:02:17.8]}
21. f5 {[%clk 0:01:22.2]} 21... f6 {[%clk 0:02:04.4]} 22. fxe6 {[%clk
0:01:15.1]} 22... fxe5 {[%clk 0:02:04.5]} 23. Qxe5 {[%clk 0:01:13.6]} 23... Rfe8
{[%clk 0:01:58.5]} 24. g5 {[%clk 0:01:10.2]} 1-0